[Event "Live Chess"]
[Site "Chess.com"]
[Date "2023.05.21"]
[Round "-"]
[White "18Ziyad"]
[Black "whitedjohn"]
[Result "0-1"]
[WhiteElo "902"]
[BlackElo "1664"]
[TimeControl "300"]
[EndTime "6:11:54 PDT"]
[Termination "whitedjohn won by resignation"]

1. e4 {[%clk 0:04:59.4]} 1... Nf6 {[%clk 0:04:58.2]} 2. Nc3 {[%clk 0:04:54.3]}
2... d5 {[%clk 0:04:56.8]} 3. e5 {[%clk 0:04:52.3]} 3... Nfd7 {[%clk 0:04:55.4]}
4. d4 {[%clk 0:04:50.7]} 4... e6 {[%clk 0:04:54.8]} 5. Bd3 {[%clk 0:04:47.1]}
5... c5 {[%clk 0:04:54.7]} 6. Be3 {[%clk 0:04:41.8]} 6... Nc6 {[%clk 0:04:51.6]}
7. Nf3 {[%clk 0:04:38.1]} 7... Qb6 {[%clk 0:04:49.2]} 8. dxc5 {[%clk 0:04:36.6]}
8... Qxb2 {[%clk 0:04:47.1]} 9. Bd2 {[%clk 0:04:31.1]} 9... Nxc5 {[%clk
0:04:34.5]} 10. Rb1 {[%clk 0:04:28.1]} 10... Nxd3+ {[%clk 0:04:28.3]} 11. cxd3
{[%clk 0:04:26.7]} 11... Qa3 {[%clk 0:04:24.8]} 12. O-O {[%clk 0:04:02.3]} 12...
Bb4 {[%clk 0:04:22.8]} 13. Qc2 {[%clk 0:03:58.3]} 13... Bxc3 {[%clk 0:04:17]}
14. Bxc3 {[%clk 0:03:55.5]} 14... Qe7 {[%clk 0:04:13.6]} 15. Nd4 {[%clk
0:03:51.8]} 15... Nxd4 {[%clk 0:04:05.4]} 16. Bxd4 {[%clk 0:03:51.7]} 16... a6
{[%clk 0:04:02.4]} 17. Rbc1 {[%clk 0:03:47.3]} 17... Bd7 {[%clk 0:03:50]} 18.
Qb2 {[%clk 0:03:40.1]} 18... Bc6 {[%clk 0:03:47.5]} 19. Bc5 {[%clk 0:03:29]}
19... Qd7 {[%clk 0:03:44.1]} 20. d4 {[%clk 0:03:25.4]} 20... Rc8 {[%clk
0:03:38.3]} 21. Bd6 {[%clk 0:03:22.2]} 21... Bb5 {[%clk 0:03:35.7]} 22. Rfd1
{[%clk 0:03:19.9]} 22... Bc4 {[%clk 0:03:29.7]} 23. Rb1 {[%clk 0:03:10.4]} 23...
b5 {[%clk 0:03:27.1]} 24. Rdc1 {[%clk 0:03:07.6]} 24... Rc6 {[%clk 0:03:25.1]}
25. Rc3 {[%clk 0:03:04.7]} 25... f6 {[%clk 0:03:14.7]} 26. f4 {[%clk 0:02:47.1]}
26... Kf7 {[%clk 0:03:12.5]} 27. Ra1 {[%clk 0:02:14]} 27... a5 {[%clk 0:03:07]}
28. a4 {[%clk 0:02:02.1]} 28... b4 {[%clk 0:03:05.2]} 29. Rcc1 {[%clk 0:01:52]}
29... Rhc8 {[%clk 0:02:57.8]} 30. Qd2 {[%clk 0:01:47.5]} 30... Rxd6 {[%clk
0:02:50.9]} 31. exd6 {[%clk 0:01:45.2]} 31... Qxd6 {[%clk 0:02:50]} 32. g3
{[%clk 0:01:41.6]} 32... Rc7 {[%clk 0:02:46.4]} 33. Rc2 {[%clk 0:01:38.1]} 33...
Rb7 {[%clk 0:02:37.3]} 34. Rb1 {[%clk 0:01:33.9]} 34... Qb6 {[%clk 0:02:28.8]}
35. Rbb2 {[%clk 0:01:31.8]} 35... Qc6 {[%clk 0:02:26.2]} 36. Qc1 {[%clk
0:01:23.8]} 36... Qxa4 {[%clk 0:02:24.4]} 37. Rxc4 {[%clk 0:01:19.1]} 37... dxc4
{[%clk 0:02:22.2]} 38. Qxc4 {[%clk 0:01:17.9]} 38... Qb5 {[%clk 0:02:20.2]} 39.
Qc1 {[%clk 0:00:56.5]} 39... a4 {[%clk 0:02:18.7]} 40. Qb1 {[%clk 0:00:52.7]}
40... b3 {[%clk 0:02:17.3]} 41. Rd2 {[%clk 0:00:49.1]} 41... Qb4 {[%clk
0:02:14.7]} 42. Rd3 {[%clk 0:00:42]} 42... a3 {[%clk 0:02:10.4]} 43. d5 {[%clk
0:00:35.1]} 43... Qc5+ {[%clk 0:02:02]} 44. Kf1 {[%clk 0:00:29.5]} 44... exd5
{[%clk 0:01:56.5]} 45. Rxb3 {[%clk 0:00:28.1]} 45... Qc4+ {[%clk 0:01:55.3]} 46.
Qd3 {[%clk 0:00:14.1]} 46... Rxb3 {[%clk 0:01:50.7]} 47. Qxc4 {[%clk 0:00:11.9]}
47... dxc4 {[%clk 0:01:49.6]} 0-1

[Event "Live Chess"]
[Site "Chess.com"]
[Date "2023.05.21"]
[Round "-"]
[White "raminguy"]
[Black "ChessClubLive"]
[Result "1-0"]
[WhiteElo "1945"]
[BlackElo "1761"]
[TimeControl "300"]
[EndTime "6:11:54 PDT"]
[Termination "raminguy won by resignation"]

1. d4 {[%clk 0:04:58.4]} 1... d5 {[%clk 0:04:58.2]} 2. Nc3 {[%clk 0:04:57.3]}
2... g6 {[%clk 0:04:53.6]} 3. Bf4 {[%clk 0:04:55.4]} 3... Bg7 {[%clk 0:04:52.4]}
4. Nb5 {[%clk 0:04:54.2]} 4... Na6 {[%clk 0:04:50.3]} 5. e3 {[%clk 0:04:53.4]}
5... c6 {[%clk 0:04:48.6]} 6. Nc3 {[%clk 0:04:52.6]} 6... Nf6 {[%clk 0:04:41.6]}
7. h4 {[%clk 0:04:49.6]} 7... h5 {[%clk 0:04:35.9]} 8. Nf3 {[%clk 0:04:46.4]}
8... Bg4 {[%clk 0:04:32.5]} 9. Qd2 {[%clk 0:04:38.5]} 9... Nc7 {[%clk
0:04:31.3]} 10. Ne5 {[%clk 0:04:35.4]} 10... Be6 {[%clk 0:04:19.2]} 11. Be2
{[%clk 0:04:30.2]} 11... Nd7 {[%clk 0:04:17.8]} 12. Nf3 {[%clk 0:04:14.2]} 12...
Nf6 {[%clk 0:04:08.7]} 13. Ng5 {[%clk 0:04:11.7]} 13... Bf5 {[%clk 0:04:02.1]}
14. f3 {[%clk 0:04:09.5]} 14... Nd7 {[%clk 0:03:41.6]} 15. g4 {[%clk 0:04:05.6]}
15... Be6 {[%clk 0:03:38.9]} 16. O-O-O {[%clk 0:03:58.4]} 16... f6 {[%clk
0:03:30.9]} 17. Nxe6 {[%clk 0:03:53.3]} 17... Nxe6 {[%clk 0:03:29.1]} 18. Bg3
{[%clk 0:03:51.5]} 18... c5 {[%clk 0:03:21.2]} 19. Bd3 {[%clk 0:03:49.2]} 19...
c4 {[%clk 0:03:20.1]} 20. Bxg6+ {[%clk 0:03:47.6]} 20... Kf8 {[%clk 0:03:14.9]}
21. Bxh5 {[%clk 0:03:41.3]} 21... b5 {[%clk 0:03:12.4]} 22. Nxd5 {[%clk
0:03:37.8]} 22... Nb6 {[%clk 0:03:06.3]} 23. Nxb6 {[%clk 0:03:21.9]} 23... Qxb6
{[%clk 0:03:04.9]} 24. d5 {[%clk 0:03:17]} 24... Nc5 {[%clk 0:02:59.4]} 25. d6
{[%clk 0:03:15.6]} 25... Rd8 {[%clk 0:02:49.9]} 26. dxe7+ {[%clk 0:03:14.2]}
26... Kxe7 {[%clk 0:02:49]} 27. Qb4 {[%clk 0:03:03.9]} 27... a5 {[%clk
0:02:29.6]} 28. Qe1 {[%clk 0:02:47]} 28... Nd3+ {[%clk 0:01:42.8]} 29. cxd3
{[%clk 0:02:37.4]} 29... cxd3 {[%clk 0:01:41.7]} 30. Kb1 {[%clk 0:02:18.1]}
30... f5 {[%clk 0:01:24]} 31. Bf4 {[%clk 0:02:02.3]} 31... Qf6 {[%clk
0:01:17.2]} 32. Bg5 {[%clk 0:02:00.2]} 1-0

[Event "Live Chess"]
[Site "Chess.com"]
[Date "2023.05.21"]
[Round "-"]
[White "lateforthesky"]
[Black "LL220284LL"]
[Result "0-1"]
[WhiteElo "2127"]
[BlackElo "2275"]
[TimeControl "300"]
[EndTime "6:11:55 PDT"]
[Termination "LL220284LL won by resignation"]

1. e4 {[%clk 0:04:57.7]} 1... g6 {[%clk 0:04:59]} 2. d4 {[%clk 0:04:50.2]} 2...
Bg7 {[%clk 0:04:58.9]} 3. Nc3 {[%clk 0:04:48.8]} 3... d6 {[%clk 0:04:57.8]} 4.
f4 {[%clk 0:04:45.4]} 4... e6 {[%clk 0:04:55.6]} 5. Nf3 {[%clk 0:04:42.7]} 5...
Ne7 {[%clk 0:04:54.5]} 6. Bd3 {[%clk 0:04:36.3]} 6... O-O {[%clk 0:04:53.6]} 7.
h4 {[%clk 0:04:30.6]} 7... h5 {[%clk 0:04:50.3]} 8. Be3 {[%clk 0:04:25.5]} 8...
Nd7 {[%clk 0:04:48.8]} 9. Qd2 {[%clk 0:04:17.1]} 9... c5 {[%clk 0:04:47.4]} 10.
O-O-O {[%clk 0:04:07.4]} 10... a6 {[%clk 0:04:46.4]} 11. f5 {[%clk 0:04:03.5]}
11... exf5 {[%clk 0:04:42.7]} 12. exf5 {[%clk 0:04:01.8]} 12... Nf6 {[%clk
0:04:36]} 13. fxg6 {[%clk 0:03:57.5]} 13... fxg6 {[%clk 0:04:35.9]} 14. dxc5
{[%clk 0:03:52.4]} 14... Ng4 {[%clk 0:04:33.8]} 15. Bg5 {[%clk 0:03:45.4]} 15...
Qe8 {[%clk 0:04:25.2]} 16. cxd6 {[%clk 0:03:38.7]} 16... Nf5 {[%clk 0:04:23.7]}
17. Rhe1 {[%clk 0:03:29.8]} 17... Qf7 {[%clk 0:04:20.4]} 18. Kb1 {[%clk
0:03:19.8]} 18... Be6 {[%clk 0:04:16.7]} 19. Bxf5 {[%clk 0:03:10.4]} 19... Bxf5
{[%clk 0:04:11.6]} 20. d7 {[%clk 0:03:08.3]} 20... Bxc3 {[%clk 0:04:09.6]} 21.
Qxc3 {[%clk 0:03:00]} 21... Bxd7 {[%clk 0:04:08.9]} 22. Ne5 {[%clk 0:02:47.5]}
22... Nxe5 {[%clk 0:04:06.4]} 23. Rxe5 {[%clk 0:02:43.6]} 23... Rac8 {[%clk
0:04:01.2]} 24. Qb3 {[%clk 0:02:32.5]} 24... Bf5 {[%clk 0:03:55.6]} 25. Qxf7+
{[%clk 0:02:28.1]} 25... Rxf7 {[%clk 0:03:54.3]} 26. Rd8+ {[%clk 0:02:15.6]}
26... Rxd8 {[%clk 0:03:52.5]} 27. Bxd8 {[%clk 0:02:14.7]} 27... Rd7 {[%clk
0:03:51.6]} 28. Re8+ {[%clk 0:02:11.9]} 28... Kf7 {[%clk 0:03:49.5]} 29. Re7+
{[%clk 0:02:10.8]} 29... Rxe7 {[%clk 0:03:48.7]} 30. Bxe7 {[%clk 0:02:09.5]}
30... Kxe7 {[%clk 0:03:48.6]} 31. Kc1 {[%clk 0:02:07.9]} 31... Kd6 {[%clk
0:03:48.2]} 32. Kd2 {[%clk 0:02:07.3]} 32... Ke5 {[%clk 0:03:48.1]} 33. c4
{[%clk 0:02:03.5]} 33... Kf4 {[%clk 0:03:47.1]} 34. Kc3 {[%clk 0:02:02]} 34...
Kg3 {[%clk 0:03:46.2]} 35. Kd4 {[%clk 0:02:01.2]} 35... Kxh4 {[%clk 0:03:45.1]}
36. b4 {[%clk 0:02:00.8]} 36... Kg3 {[%clk 0:03:44.3]} 37. a4 {[%clk 0:01:56.4]}
37... Kxg2 {[%clk 0:03:43.5]} 38. b5 {[%clk 0:01:55.7]} 38... axb5 {[%clk
0:03:43]} 39. cxb5 {[%clk 0:01:54.4]} 39... Bg4 {[%clk 0:03:40.8]} 40. a5 {[%clk
0:01:51.5]} 40... Bf3 {[%clk 0:03:39.6]} 0-1

[Event "Live Chess"]
[Site "Chess.com"]
[Date "2023.05.21"]
[Round "-"]
[White "sanjesh_ananda"]
[Black "GEMdzq"]
[Result "0-1"]
[WhiteElo "1162"]
[BlackElo "2259"]
[TimeControl "300"]
[EndTime "6:12:27 PDT"]
[Termination "GEMdzq won on time"]

1. e4 {[%clk 0:04:55.6]} 1... d6 {[%clk 0:04:59.1]} 2. d4 {[%clk 0:04:46.4]}
2... Nf6 {[%clk 0:04:57.7]} 3. Nc3 {[%clk 0:04:44.3]} 3... g6 {[%clk 0:04:57.2]}
4. Bg5 {[%clk 0:04:39.8]} 4... h6 {[%clk 0:04:55.5]} 5. Bh4 {[%clk 0:04:35.8]}
5... Bg7 {[%clk 0:04:54.9]} 6. Nf3 {[%clk 0:04:15.4]} 6... O-O {[%clk
0:04:51.9]} 7. Bc4 {[%clk 0:04:03.2]} 7... c5 {[%clk 0:04:35.2]} 8. O-O {[%clk
0:03:40.5]} 8... cxd4 {[%clk 0:04:33]} 9. Nxd4 {[%clk 0:03:35.2]} 9... Nc6
{[%clk 0:04:32.6]} 10. Nf3 {[%clk 0:03:25.8]} 10... Bg4 {[%clk 0:04:27.8]} 11.
h3 {[%clk 0:03:23.7]} 11... Bd7 {[%clk 0:04:26.2]} 12. Re1 {[%clk 0:03:08.4]}
12... Rc8 {[%clk 0:04:19.8]} 13. Bb3 {[%clk 0:02:57.9]} 13... Re8 {[%clk
0:04:06.2]} 14. Nd5 {[%clk 0:02:16.9]} 14... Nxd5 {[%clk 0:03:58]} 15. Qxd5
{[%clk 0:02:13.8]} 15... Be6 {[%clk 0:03:55.6]} 16. Qd2 {[%clk 0:01:53.6]} 16...
Bxb3 {[%clk 0:03:46.7]} 17. axb3 {[%clk 0:01:48.9]} 17... a6 {[%clk 0:03:45.5]}
18. c3 {[%clk 0:01:46.1]} 18... Qb6 {[%clk 0:03:41]} 19. b4 {[%clk 0:01:42.2]}
19... a5 {[%clk 0:03:35.4]} 20. Bg3 {[%clk 0:01:01.2]} 20... axb4 {[%clk
0:03:26.9]} 21. cxb4 {[%clk 0:00:52]} 21... Nxb4 {[%clk 0:03:26.4]} 22. e5
{[%clk 0:00:40.8]} 22... dxe5 {[%clk 0:03:14.9]} 23. Nxe5 {[%clk 0:00:37.2]}
23... Nc2 {[%clk 0:03:06.7]} 24. Nd7 {[%clk 0:00:18.8]} 24... Qb5 {[%clk
0:02:25.6]} 25. Rac1 {[%clk 0:00:12.4]} 25... Nxe1 {[%clk 0:02:23.6]} 26. Rxc8
{[%clk 0:00:10.5]} 26... Rxc8 {[%clk 0:02:23.5]} 27. Qxe1 {[%clk 0:00:02.6]}
27... Qxd7 {[%clk 0:02:22.3]} 0-1

[Event "Live Chess"]
[Site "Chess.com"]
[Date "2023.05.21"]
[Round "-"]
[White "Nazar_777"]
[Black "smoggyrabbit"]
[Result "1/2-1/2"]
[WhiteElo "1570"]
[BlackElo "1648"]
[TimeControl "300"]
[EndTime "6:12:31 PDT"]
[Termination "Game drawn - timeout vs insufficient material"]

1. e3 {[%clk 0:04:58.2]} 1... e6 {[%clk 0:04:58.8]} 2. h4 {[%clk 0:04:54.9]}
2... f5 {[%clk 0:04:57.3]} 3. a3 {[%clk 0:04:54.2]} 3... Nf6 {[%clk 0:04:55.7]}
4. c4 {[%clk 0:04:53.4]} 4... b6 {[%clk 0:04:53.4]} 5. Nf3 {[%clk 0:04:52.6]}
5... Bb7 {[%clk 0:04:52.4]} 6. Nc3 {[%clk 0:04:52]} 6... Be7 {[%clk 0:04:50.9]}
7. Be2 {[%clk 0:04:51.4]} 7... d6 {[%clk 0:04:49.9]} 8. Qc2 {[%clk 0:04:50.6]}
8... O-O {[%clk 0:04:47.7]} 9. b3 {[%clk 0:04:49.6]} 9... Ne4 {[%clk 0:04:43]}
10. Bb2 {[%clk 0:04:48.3]} 10... Nd7 {[%clk 0:04:36.6]} 11. Rc1 {[%clk
0:04:46.1]} 11... Ndf6 {[%clk 0:04:31.1]} 12. Ng5 {[%clk 0:04:44.4]} 12... Nxg5
{[%clk 0:04:21]} 13. hxg5 {[%clk 0:04:43]} 13... Ne4 {[%clk 0:04:19.4]} 14. Bf3
{[%clk 0:04:41.5]} 14... d5 {[%clk 0:03:51.5]} 15. cxd5 {[%clk 0:04:39]} 15...
exd5 {[%clk 0:03:49.6]} 16. Nxe4 {[%clk 0:04:33.5]} 16... fxe4 {[%clk
0:03:45.1]} 17. Qc3 {[%clk 0:04:29.9]} 17... d4 {[%clk 0:02:58.4]} 18. Qc2
{[%clk 0:04:16]} 18... Bxg5 {[%clk 0:02:07]} 19. Bxe4 {[%clk 0:04:13.4]} 19...
Bxe4 {[%clk 0:01:56.1]} 20. Qxe4 {[%clk 0:04:11.3]} 20... h6 {[%clk 0:01:41]}
21. Bxd4 {[%clk 0:04:08.5]} 21... Bf6 {[%clk 0:01:30.1]} 22. Qe6+ {[%clk
0:03:50.3]} 22... Kh8 {[%clk 0:01:27.9]} 23. Bxf6 {[%clk 0:03:18.1]} 23... Rxf6
{[%clk 0:01:25.7]} 24. Qe4 {[%clk 0:03:04.7]} 24... Qf8 {[%clk 0:01:10.7]} 25.
f4 {[%clk 0:02:58.2]} 25... Re8 {[%clk 0:01:04.1]} 26. Qb4 {[%clk 0:02:52.6]}
26... Qxb4 {[%clk 0:00:48.2]} 27. axb4 {[%clk 0:02:51.1]} 27... Rxf4 {[%clk
0:00:46.2]} 28. Rc4 {[%clk 0:02:49.6]} 28... Rxc4 {[%clk 0:00:42.5]} 29. bxc4
{[%clk 0:02:48.3]} 29... Re4 {[%clk 0:00:37.9]} 30. c5 {[%clk 0:02:42.5]} 30...
Rxb4 {[%clk 0:00:35.4]} 31. cxb6 {[%clk 0:02:41.2]} 31... Rb1+ {[%clk
0:00:32.6]} 32. Ke2 {[%clk 0:02:29.5]} 32... Rxh1 {[%clk 0:00:31.2]} 33. bxc7
{[%clk 0:02:20.8]} 33... Rc1 {[%clk 0:00:30.1]} 34. d4 {[%clk 0:02:19.8]} 34...
Rxc7 {[%clk 0:00:28.9]} 35. Kd3 {[%clk 0:02:19]} 35... a5 {[%clk 0:00:27.9]} 36.
e4 {[%clk 0:02:18.4]} 36... a4 {[%clk 0:00:26.9]} 37. d5 {[%clk 0:02:17.9]}
37... a3 {[%clk 0:00:25.5]} 38. d6 {[%clk 0:02:17]} 38... Rc6 {[%clk 0:00:23.5]}
39. e5 {[%clk 0:02:16.3]} 39... a2 {[%clk 0:00:22.5]} 40. d7 {[%clk 0:02:15.5]}
40... a1=Q {[%clk 0:00:18.6]} 41. d8=Q+ {[%clk 0:02:12]} 41... Kh7 {[%clk
0:00:17.9]} 42. Qd4 {[%clk 0:01:59.7]} 42... Qd1+ {[%clk 0:00:15.7]} 43. Ke4
{[%clk 0:01:52.5]} 43... Qxd4+ {[%clk 0:00:13.7]} 44. Kxd4 {[%clk 0:01:51.3]}
44... Rc1 {[%clk 0:00:12.3]} 45. e6 {[%clk 0:01:48.2]} 45... Kg6 {[%clk
0:00:11.8]} 46. g4 {[%clk 0:01:44.4]} 46... Kf6 {[%clk 0:00:11]} 47. Kd5 {[%clk
0:01:43]} 47... Re1 {[%clk 0:00:10.1]} 48. e7 {[%clk 0:01:40.5]} 48... Rxe7
{[%clk 0:00:08.4]} 49. Kd4 {[%clk 0:01:39.6]} 49... g6 {[%clk 0:00:06.3]} 50.
Kd3 {[%clk 0:01:38.2]} 50... h5 {[%clk 0:00:05.7]} 51. g5+ {[%clk 0:01:36.3]}
51... Kxg5 {[%clk 0:00:04.9]} 52. Kd4 {[%clk 0:01:34.8]} 52... h4 {[%clk
0:00:04.8]} 53. Kd5 {[%clk 0:01:34]} 53... h3 {[%clk 0:00:04.7]} 54. Kd6 {[%clk
0:01:33.4]} 54... h2 {[%clk 0:00:04.6]} 55. Kxe7 {[%clk 0:01:32.7]} 55... h1=Q
{[%clk 0:00:04.5]} 56. Kf7 {[%clk 0:01:31.9]} 56... Qe4 {[%clk 0:00:04.4]} 57.
Kg7 {[%clk 0:01:30.5]} 57... Qc6 {[%clk 0:00:03.7]} 58. Kf7 {[%clk 0:01:29.5]}
58... Qf6+ {[%clk 0:00:02.5]} 59. Ke8 {[%clk 0:01:28.5]} 59... Kf5 {[%clk
0:00:02.4]} 60. Kd7 {[%clk 0:01:27.3]} 60... Qe6+ {[%clk 0:00:01.5]} 61. Kc7
{[%clk 0:01:26.3]} 61... Qd6+ {[%clk 0:00:00.9]} 62. Kxd6 {[%clk 0:01:24.9]}
62... g5 {[%clk 0:00:00.4]} 63. Kc5 {[%clk 0:01:21.9]} 1/2-1/2

[Event "Live Chess"]
[Site "Chess.com"]
[Date "2023.05.21"]
[Round "-"]
[White "Tushinskiy"]
[Black "SupremeTactician"]
[Result "1-0"]
[WhiteElo "2216"]
[BlackElo "2232"]
[TimeControl "300"]
[EndTime "6:12:34 PDT"]
[Termination "Tushinskiy won by resignation"]

1. d4 {[%clk 0:04:54.2]} 1... Nf6 {[%clk 0:04:57.3]} 2. c3 {[%clk 0:04:54.1]}
2... d5 {[%clk 0:04:54.2]} 3. Nf3 {[%clk 0:04:54]} 3... e6 {[%clk 0:04:52.7]} 4.
Bf4 {[%clk 0:04:53.9]} 4... c5 {[%clk 0:04:51.8]} 5. Bg3 {[%clk 0:04:53.8]} 5...
Nc6 {[%clk 0:04:50.3]} 6. e3 {[%clk 0:04:52.9]} 6... cxd4 {[%clk 0:04:48.8]} 7.
exd4 {[%clk 0:04:52.8]} 7... Bd6 {[%clk 0:04:47.4]} 8. Bd3 {[%clk 0:04:52.1]}
8... O-O {[%clk 0:04:45.3]} 9. Qe2 {[%clk 0:04:48.1]} 9... Re8 {[%clk
0:04:40.7]} 10. Ne5 {[%clk 0:04:46.8]} 10... Bxe5 {[%clk 0:04:38.3]} 11. dxe5
{[%clk 0:04:45.1]} 11... Nd7 {[%clk 0:04:36.4]} 12. O-O {[%clk 0:04:42.5]} 12...
Qc7 {[%clk 0:04:30.8]} 13. Nd2 {[%clk 0:04:40.3]} 13... Ndxe5 {[%clk 0:04:26.4]}
14. Rfe1 {[%clk 0:04:37.4]} 14... f6 {[%clk 0:04:24.3]} 15. Bxh7+ {[%clk
0:04:30.3]} 15... Kf8 {[%clk 0:04:18.5]} 16. Bc2 {[%clk 0:04:26.1]} 16... Qf7
{[%clk 0:04:07.7]} 17. f4 {[%clk 0:04:22.6]} 17... Nd7 {[%clk 0:04:05.3]} 18.
Nf3 {[%clk 0:04:20.1]} 18... Nc5 {[%clk 0:04:02.2]} 19. Nh4 {[%clk 0:04:01.6]}
19... Ne7 {[%clk 0:03:58.8]} 20. f5 {[%clk 0:03:48.1]} 20... e5 {[%clk
0:03:54.2]} 21. Qf2 {[%clk 0:03:43.2]} 21... b6 {[%clk 0:03:51.3]} 22. b4 {[%clk
0:03:40.5]} 22... Nb7 {[%clk 0:03:46.3]} 23. Rad1 {[%clk 0:03:39.2]} 23... Nd6
{[%clk 0:03:44.4]} 24. Ng6+ {[%clk 0:03:29.8]} 24... Nxg6 {[%clk 0:03:42.1]} 25.
fxg6 {[%clk 0:03:22.8]} 25... Qe6 {[%clk 0:03:40.6]} 26. Rxe5 {[%clk 0:03:20]}
26... Qxe5 {[%clk 0:03:36.9]} 27. Bxe5 {[%clk 0:03:17]} 27... Rxe5 {[%clk
0:03:36.8]} 28. h3 {[%clk 0:03:14.3]} 28... Bd7 {[%clk 0:03:32.4]} 29. Qh4
{[%clk 0:03:12.7]} 29... Ke7 {[%clk 0:03:29.3]} 30. Qh7 {[%clk 0:03:08.8]} 30...
Ne8 {[%clk 0:03:25.7]} 31. Bb3 {[%clk 0:03:05.5]} 31... Rc8 {[%clk 0:03:22.8]}
32. Bxd5 {[%clk 0:02:59.1]} 32... Rxc3 {[%clk 0:03:19.4]} 33. Bf7 {[%clk
0:02:55.6]} 1-0

[Event "Live Chess"]
[Site "Chess.com"]
[Date "2023.05.21"]
[Round "-"]
[White "grillage"]
[Black "Doge_Dandolo"]
[Result "1-0"]
[WhiteElo "1799"]
[BlackElo "1897"]
[TimeControl "300"]
[EndTime "6:12:36 PDT"]
[Termination "grillage won by resignation"]

1. d4 {[%clk 0:04:58.8]} 1... d5 {[%clk 0:04:56.4]} 2. Nf3 {[%clk 0:04:52.6]}
2... Nf6 {[%clk 0:04:55.1]} 3. c4 {[%clk 0:04:50.8]} 3... c6 {[%clk 0:04:54.2]}
4. Qc2 {[%clk 0:04:48.5]} 4... a6 {[%clk 0:04:52.5]} 5. Bf4 {[%clk 0:04:42.4]}
5... Bg4 {[%clk 0:04:50.4]} 6. Ne5 {[%clk 0:04:40.5]} 6... Bh5 {[%clk
0:04:47.9]} 7. e3 {[%clk 0:04:38.6]} 7... e6 {[%clk 0:04:46.9]} 8. Nc3 {[%clk
0:04:33.9]} 8... Nbd7 {[%clk 0:04:45.4]} 9. cxd5 {[%clk 0:04:32.4]} 9... Nxd5
{[%clk 0:04:42.5]} 10. Nxd5 {[%clk 0:04:27.2]} 10... cxd5 {[%clk 0:04:41.6]} 11.
Bd3 {[%clk 0:04:24]} 11... Rc8 {[%clk 0:04:38.3]} 12. Qa4 {[%clk 0:04:22.5]}
12... Bg6 {[%clk 0:04:34.1]} 13. Bxg6 {[%clk 0:04:04.4]} 13... hxg6 {[%clk
0:04:14.9]} 14. O-O {[%clk 0:04:01.6]} 14... Be7 {[%clk 0:04:02.1]} 15. Rac1
{[%clk 0:03:53.6]} 15... O-O {[%clk 0:03:57.9]} 16. Qxd7 {[%clk 0:03:51.1]} 1-0

[Event "Live Chess"]
[Site "Chess.com"]
[Date "2023.05.21"]
[Round "-"]
[White "onemoretime1975"]
[Black "f4nomore"]
[Result "0-1"]
[WhiteElo "1864"]
[BlackElo "1392"]
[TimeControl "300"]
[EndTime "6:12:50 PDT"]
[Termination "f4nomore won by resignation"]

1. e4 {[%clk 0:04:57.2]} 1... g6 {[%clk 0:04:59.9]} 2. Nf3 {[%clk 0:04:55]} 2...
Bg7 {[%clk 0:04:57.7]} 3. c3 {[%clk 0:04:53.1]} 3... d6 {[%clk 0:04:57.6]} 4. d4
{[%clk 0:04:51.1]} 4... Nf6 {[%clk 0:04:56.3]} 5. Bd3 {[%clk 0:04:47.8]} 5...
O-O {[%clk 0:04:54.2]} 6. e5 {[%clk 0:04:45.3]} 6... dxe5 {[%clk 0:04:51.9]} 7.
Nxe5 {[%clk 0:04:44.1]} 7... Nbd7 {[%clk 0:04:49.1]} 8. Nxd7 {[%clk 0:04:41.4]}
8... Bxd7 {[%clk 0:04:47.3]} 9. O-O {[%clk 0:04:40]} 9... Bc6 {[%clk 0:04:45.6]}
10. Nd2 {[%clk 0:04:36.2]} 10... Qd5 {[%clk 0:04:42.5]} 11. f3 {[%clk
0:04:30.8]} 11... e5 {[%clk 0:04:32.2]} 12. Bc4 {[%clk 0:04:25.5]} 12... Qd6
{[%clk 0:04:24.7]} 13. dxe5 {[%clk 0:04:20.4]} 13... Qxe5 {[%clk 0:04:19.6]} 14.
Re1 {[%clk 0:04:19.1]} 14... Qc5+ {[%clk 0:04:11.5]} 15. Kh1 {[%clk 0:04:15.4]}
15... Nh5 {[%clk 0:03:59]} 16. Qb3 {[%clk 0:03:58]} 16... Qf2 {[%clk 0:03:51.3]}
17. Rf1 {[%clk 0:03:48.5]} 17... Qh4 {[%clk 0:03:48.3]} 18. g4 {[%clk
0:03:20.3]} 18... Ng3+ {[%clk 0:03:44]} 19. Kg2 {[%clk 0:03:19.2]} 19... Nxf1
{[%clk 0:03:41]} 20. Nxf1 {[%clk 0:03:14.7]} 20... Qxg4+ {[%clk 0:03:35.3]} 21.
Ng3 {[%clk 0:03:12.4]} 21... Qxf3+ {[%clk 0:03:32.1]} 22. Kg1 {[%clk 0:03:05.8]}
22... Rae8 {[%clk 0:03:23.8]} 0-1

[Event "Live Chess"]
[Site "Chess.com"]
[Date "2023.05.21"]
[Round "-"]
[White "PantherCal"]
[Black "TheSmoulderingMaster"]
[Result "1-0"]
[WhiteElo "1798"]
[BlackElo "1641"]
[TimeControl "300"]
[EndTime "6:13:03 PDT"]
[Termination "PantherCal won by resignation"]

1. e4 {[%clk 0:04:58.8]} 1... c5 {[%clk 0:04:58.4]} 2. c3 {[%clk 0:04:57]} 2...
d5 {[%clk 0:04:57]} 3. exd5 {[%clk 0:04:56.2]} 3... Qxd5 {[%clk 0:04:56.1]} 4.
d4 {[%clk 0:04:55.7]} 4... Nc6 {[%clk 0:04:54.5]} 5. Nf3 {[%clk 0:04:55.1]} 5...
Bg4 {[%clk 0:04:52.4]} 6. Be2 {[%clk 0:04:54.2]} 6... cxd4 {[%clk 0:04:49.5]} 7.
cxd4 {[%clk 0:04:52]} 7... e6 {[%clk 0:04:48]} 8. Nc3 {[%clk 0:04:50.6]} 8...
Bb4 {[%clk 0:04:46.4]} 9. O-O {[%clk 0:04:47.9]} 9... Qd8 {[%clk 0:04:43.2]} 10.
a3 {[%clk 0:04:45.4]} 10... Ba5 {[%clk 0:04:41.3]} 11. b4 {[%clk 0:04:43.8]}
11... Bb6 {[%clk 0:04:40]} 12. Be3 {[%clk 0:04:43.5]} 12... Nf6 {[%clk 0:04:38]}
13. h3 {[%clk 0:04:37.9]} 13... Bh5 {[%clk 0:04:36.3]} 14. Qd2 {[%clk 0:04:36]}
14... O-O {[%clk 0:04:34.1]} 15. Rfd1 {[%clk 0:04:34.7]} 15... Rc8 {[%clk
0:04:31.9]} 16. Rac1 {[%clk 0:04:33.4]} 16... Ne7 {[%clk 0:04:28.6]} 17. g4
{[%clk 0:04:22.8]} 17... Bg6 {[%clk 0:04:26.8]} 18. Bd3 {[%clk 0:04:19]} 18...
Nfd5 {[%clk 0:04:21.3]} 19. Bxg6 {[%clk 0:04:03.9]} 19... fxg6 {[%clk
0:04:19.2]} 20. Ng5 {[%clk 0:03:54.4]} 20... Nxe3 {[%clk 0:04:10.5]} 21. Qxe3
{[%clk 0:03:50.4]} 21... e5 {[%clk 0:03:40.5]} 22. Qxe5 {[%clk 0:03:30.6]} 22...
Qd7 {[%clk 0:03:31.3]} 23. Qe6+ {[%clk 0:03:19.2]} 23... Qxe6 {[%clk 0:03:29.7]}
24. Nxe6 {[%clk 0:03:19.1]} 24... Rf3 {[%clk 0:03:28.3]} 25. Nc5 {[%clk
0:03:13.6]} 25... Rxh3 {[%clk 0:03:21.9]} 26. Kg2 {[%clk 0:03:09.5]} 26... Rh4
{[%clk 0:03:13]} 27. f3 {[%clk 0:02:58.1]} 27... g5 {[%clk 0:03:08.7]} 28. N3e4
{[%clk 0:02:52.5]} 28... Ng6 {[%clk 0:03:05.8]} 29. Nxg5 {[%clk 0:02:37.6]}
29... Re8 {[%clk 0:02:55.5]} 30. Re1 {[%clk 0:02:27.9]} 30... Rxe1 {[%clk
0:02:52.5]} 31. Rxe1 {[%clk 0:02:26.6]} 31... Bc7 {[%clk 0:02:31.9]} 32. Re8+
{[%clk 0:02:21]} 32... Nf8 {[%clk 0:02:31.3]} 33. Nce6 {[%clk 0:02:17.3]} 33...
Rh2+ {[%clk 0:02:28.4]} 34. Kg1 {[%clk 0:02:16.1]} 1-0